[Event "CCT Chessable Masters Play-In 2025"]
[Site "Online"]
[Date "2025.02.17"]
[Round "3.70"]
[White "Sankalp Gupta"]
[Black "Dominguez Perez, Leinier"]
[Result "1/2-1/2"]
[ECO "A34"]
[WhiteElo "2538"]
[BlackElo "2604"]
[PlyCount "118"]
[EventDate "2025.02.13"]
[EventType "swiss"]
[EventCountry "NET"]
[TimeControl "600"]
[WhiteClock "0:03:57"]
[BlackClock "0:01:10"]

1. Nf3 {[%emt 0:00:01]} Nf6 {[%emt 0:01:03]} 2. c4 {[%emt 0:00:03]} c5 {[%emt 0:00:02]} 3. Nc3 {[%emt 0:00:02]} Nc6 {[%emt 0:00:03]} 4. g3 {[%emt 0:00:01]} d5 {[%emt 0:00:03]} 5. cxd5 {[%emt 0:00:00]} Nxd5 {[%emt 0:00:01]} 6. Bg2 {[%emt 0:00:00]} g6 {[%emt 0:00:01]} 7. O-O {[%emt 0:00:01]} Bg7 {[%emt 0:00:01]} 8. Qb3 {[%emt 0:00:06]} e6 {[%emt 0:00:02]} 9. Nxd5 {[%emt 0:00:04]} exd5 {[%emt 0:00:01]} 10. d4 {[%emt 0:00:08]} c4 {[%emt 0:00:13]} 11. Qe3+ {[%emt 0:00:10]} Be6 {[%emt 0:00:14]} 12. b3 {[%emt 0:00:03]} O-O {[%emt 0:00:06]} 13. bxc4 {[%emt 0:00:06]} dxc4 {[%emt 0:00:01]} 14. Rd1 {[%emt 0:00:00]} Re8 {[%emt 0:00:08]} 15. Bb2 {[%emt 0:00:14]} Bd5 {[%emt 0:00:05]} 16. Qd2 {[%emt 0:00:04]} b5 {[%emt 0:00:01]} 17. Bc3 {[%emt 0:00:30]} a5 {[%emt 0:00:32]} 18. a3 {[%emt 0:00:01]} Qd6 {[%emt 0:00:27]} 19. Rdb1 {[%emt 0:00:30]} Reb8 {[%emt 0:00:51]} 20. e3 {[%emt 0:00:02]} Bf8 {[%emt 0:00:45]} 21. Qc2 {[%emt 0:00:33]} b4 {[%emt 0:00:26]} 22. axb4 {[%emt 0:00:01]} axb4 {[%emt 0:00:01]} 23. Rxa8 {[%emt 0:00:00]} Rxa8 {[%emt 0:00:00]} 24. e4 {[%emt 0:00:00]} b3 {[%emt 0:00:09]} 25. Qe2 {[%emt 0:00:02]} Re8 {[%emt 0:01:04]} 26. Nd2 {[%emt 0:00:02]} Bg7 {[%emt 0:00:28]} 27. Nxc4 {[%emt 0:00:20]} Nxd4 {[%emt 0:00:16]} 28. Bxd4 {[%emt 0:00:10]} Bxc4 {[%emt 0:00:01]} 29. Qxc4 {[%emt 0:00:00]} Bxd4 {[%emt 0:00:01]} 30. Rxb3 {[%emt 0:00:13]} Ra8 {[%emt 0:00:08]} 31. Rd3 {[%emt 0:00:11]} Rd8 {[%emt 0:00:02]} 32. Rf3 {[%emt 0:00:16]} Rd7 {[%emt 0:00:02]} 33. Bh3 {[%emt 0:00:04]} Rc7 {[%emt 0:00:04]} 34. Qd5 {[%emt 0:00:03]} Rc1+ {[%emt 0:00:13]} 35. Kg2 {[%emt 0:00:01]} Qxd5 {[%emt 0:00:00]} 36. exd5 {[%emt 0:00:00]} Rd1 {[%emt 0:00:00]} 37. Bd7 {[%emt 0:00:12]} Rd2 {[%emt 0:00:07]} 38. g4 {[%emt 0:00:04]} Kg7 {[%emt 0:00:01]} 39. Be8 {[%emt 0:00:10]} f6 {[%emt 0:00:01]} 40. Bb5 {[%emt 0:00:30]} Bc5 {[%emt 0:00:01]} 41. Bc6 {[%emt 0:00:14]} Rc2 {[%emt 0:00:01]} 42. h3 {[%emt 0:00:01]} Rd2 {[%emt 0:00:01]} 43. Kf1 {[%emt 0:00:01]} Rc2 {[%emt 0:00:01]} 44. Bb5 {[%emt 0:00:04]} Rd2 {[%emt 0:00:01]} 45. Bc4 {[%emt 0:00:01]} Rd4 {[%emt 0:00:08]} 46. Bb3 {[%emt 0:00:02]} Rd2 {[%emt 0:00:01]} 47. Ke1 {[%emt 0:00:01]} Rb2 {[%emt 0:00:00]} 48. Kf1 {[%emt 0:00:08]} Rd2 {[%emt 0:00:02]} 49. h4 {[%emt 0:00:10]} Rb2 {[%emt 0:00:02]} 50. Kg2 {[%emt 0:00:01]} Bxf2 {[%emt 0:00:06]} 51. Rxf2 {[%emt 0:00:00]} Rxb3 {[%emt 0:00:00]} 52. Rd2 {[%emt 0:00:01]} Rb7 {[%emt 0:00:02]} 53. Kf3 {[%emt 0:00:02]} Kf7 {[%emt 0:00:00]} 54. Ra2 {[%emt 0:00:11]} Ke7 {[%emt 0:00:02]} 55. Ra6 {[%emt 0:00:02]} Rb3+ {[%emt 0:00:03]} 56. Kf4 {[%emt 0:00:03]} Rb4+ {[%emt 0:00:01]} 57. Kf3 {[%emt 0:00:00]} Rb3+ {[%emt 0:00:04]} 58. Ke4 {[%emt 0:00:02]} Rb4+ {[%emt 0:00:01]} 59. Kf3 {[%emt 0:00:01]} Rb3+ {[%emt 0:00:29]} 1/2-1/2

[Event "CCT Chessable Masters Play-In 2025"]
[Site "Online"]
[Date "2025.02.17"]
[Round "3.71"]
[White "Sanal, Vahap"]
[Black "Iturrizaga Bonelli, Eduardo"]
[Result "0-1"]
[ECO "B33"]
[WhiteElo "2557"]
[BlackElo "2577"]
[PlyCount "32"]
[EventDate "2025.02.13"]
[EventType "swiss"]
[EventCountry "NET"]
[TimeControl "600"]
[WhiteClock "0:05:41"]
[BlackClock "0:09:06"]

1. e4 {[%emt 0:00:01]} c5 {[%emt 0:00:04]} 2. Nf3 {[%emt 0:00:00]} Nc6 {[%emt 0:00:01]} 3. d4 {[%emt 0:00:03]} cxd4 {[%emt 0:00:00]} 4. Nxd4 {[%emt 0:00:01]} Qb6 {[%emt 0:00:00]} 5. Nb3 {[%emt 0:00:07]} Nf6 {[%emt 0:00:01]} 6. Nc3 {[%emt 0:00:03]} e6 {[%emt 0:00:01]} 7. Be3 {[%emt 0:00:01]} Qc7 {[%emt 0:00:01]} 8. a3 {[%emt 0:00:17]} Be7 {[%emt 0:00:02]} 9. g4 {[%emt 0:00:17]} d5 {[%emt 0:00:05]} 10. exd5 {[%emt 0:00:05]} Nxd5 {[%emt 0:00:00]} 11. Nxd5 {[%emt 0:00:03]} exd5 {[%emt 0:00:00]} 12. Bg2 {[%emt 0:00:19]} Be6 {[%emt 0:00:03]} 13. Bxd5 {[%emt 0:00:15]} Rd8 {[%emt 0:00:06]} 14. c4 {[%emt 0:00:03]} Qe5 {[%emt 0:00:11]} 15. Qe2 {[%emt 0:01:59]} Bxd5 {[%emt 0:00:19]} 16. cxd5 {[%emt 0:00:45]} Qxd5 {[%emt 0:00:00]} 0-1

[Event "CCT Chessable Masters Play-In 2025"]
[Site "Online"]
[Date "2025.02.17"]
[Round "3.72"]
[White "Vakhidov, Jakhongir"]
[Black "Jumabayev, Rinat"]
[Result "1-0"]
[ECO "D31"]
[WhiteElo "2546"]
[BlackElo "2564"]
[PlyCount "75"]
[EventDate "2025.02.13"]
[EventType "swiss"]
[EventCountry "NET"]
[TimeControl "600"]
[WhiteClock "0:00:57"]
[BlackClock "0:00:01"]

1. c4 {[%emt 0:00:03]} e6 {[%emt 0:00:03]} 2. Nc3 {[%emt 0:00:01]} d5 {[%emt 0:00:04]} 3. d4 {[%emt 0:00:01]} Bb4 {[%emt 0:00:05]} 4. cxd5 {[%emt 0:00:04]} exd5 {[%emt 0:00:03]} 5. Bf4 {[%emt 0:00:01]} c6 {[%emt 0:00:11]} 6. e3 {[%emt 0:00:01]} Ne7 {[%emt 0:00:02]} 7. h4 {[%emt 0:00:26]} a5 {[%emt 0:00:23]} 8. h5 {[%emt 0:00:06]} h6 {[%emt 0:00:01]} 9. a3 {[%emt 0:00:04]} Bd6 {[%emt 0:00:02]} 10. Qf3 {[%emt 0:00:01]} Qc7 {[%emt 0:00:10]} 11. Nge2 {[%emt 0:00:14]} Nd7 {[%emt 0:00:39]} 12. Rc1 {[%emt 0:00:19]} Bxf4 {[%emt 0:00:04]} 13. Nxf4 {[%emt 0:00:00]} Qd6 {[%emt 0:00:10]} 14. Bd3 {[%emt 0:00:08]} Nf6 {[%emt 0:00:02]} 15. Qg3 {[%emt 0:00:01]} Bf5 {[%emt 0:01:05]} 16. Qxg7 {[%emt 0:00:52]} Rg8 {[%emt 0:00:18]} 17. Qxh6 {[%emt 0:00:02]} Kd7 {[%emt 0:00:28]} 18. Be2 {[%emt 0:00:41]} b6 {[%emt 0:02:54]} 19. Kf1 {[%emt 0:00:09]} Be4 {[%emt 0:00:58]} 20. Nxe4 {[%emt 0:01:12]} dxe4 {[%emt 0:00:00]} 21. g4 {[%emt 0:00:01]} Nxg4 {[%emt 0:00:22]} 22. Qxd6+ {[%emt 0:00:01]} Kxd6 {[%emt 0:00:00]} 23. h6 {[%emt 0:00:02]} Nf6 {[%emt 0:00:06]} 24. h7 {[%emt 0:00:16]} Rh8 {[%emt 0:00:01]} 25. Rh6 {[%emt 0:00:01]} Ng6 {[%emt 0:00:03]} 26. f3 {[%emt 0:01:41]} Rxh7 {[%emt 0:01:04]} 27. Rxh7 {[%emt 0:00:13]} Nxh7 {[%emt 0:00:01]} 28. fxe4 {[%emt 0:00:17]} Ng5 {[%emt 0:00:23]} 29. e5+ {[%emt 0:00:03]} Kc7 {[%emt 0:00:01]} 30. Bb5 {[%emt 0:00:27]} c5 {[%emt 0:00:01]} 31. Nxg6 {[%emt 0:00:47]} fxg6 {[%emt 0:00:00]} 32. d5 {[%emt 0:00:23]} Rf8+ {[%emt 0:00:03]} 33. Ke2 {[%emt 0:00:01]} Rf5 {[%emt 0:00:05]} 34. d6+ {[%emt 0:00:01]} Kb7 {[%emt 0:00:01]} 35. Rd1 {[%emt 0:00:18]} Rxe5 {[%emt 0:00:04]} 36. d7 {[%emt 0:00:03]} Ne6 {[%emt 0:00:00]} 37. d8=Q {[%emt 0:00:02]} Nxd8 {[%emt 0:00:02]} 38. Rxd8 {[%emt 0:00:00]} 1-0

[Event "CCT Chessable Masters Play-In 2025"]
[Site "Online"]
[Date "2025.02.17"]
[Round "3.73"]
[White "Moiseenko, Alexander"]
[Black "Henriquez Villagra, Cristobal"]
[Result "0-1"]
[ECO "D31"]
[WhiteElo "2568"]
[BlackElo "2597"]
[PlyCount "64"]
[EventDate "2025.02.13"]
[EventType "swiss"]
[EventCountry "NET"]
[TimeControl "600"]
[WhiteClock "0:03:24"]
[BlackClock "0:02:55"]

1. d4 {[%emt 0:00:01]} d5 {[%emt 0:00:03]} 2. c4 {[%emt 0:00:01]} e6 {[%emt 0:00:00]} 3. Nc3 {[%emt 0:00:01]} c6 {[%emt 0:00:01]} 4. e4 {[%emt 0:00:06]} Bb4 {[%emt 0:00:17]} 5. cxd5 {[%emt 0:00:11]} exd5 {[%emt 0:00:13]} 6. e5 {[%emt 0:00:01]} Ne7 {[%emt 0:00:08]} 7. Bd3 {[%emt 0:00:02]} c5 {[%emt 0:00:13]} 8. a3 {[%emt 0:00:10]} Ba5 {[%emt 0:00:12]} 9. dxc5 {[%emt 0:00:12]} d4 {[%emt 0:00:00]} 10. b4 {[%emt 0:00:01]} dxc3 {[%emt 0:00:01]} 11. bxa5 {[%emt 0:00:01]} Qxa5 {[%emt 0:00:01]} 12. Nf3 {[%emt 0:00:29]} Na6 {[%emt 0:01:41]} 13. O-O {[%emt 0:00:12]} Nxc5 {[%emt 0:00:13]} 14. Bc2 {[%emt 0:00:01]} Bg4 {[%emt 0:00:32]} 15. Be3 {[%emt 0:00:16]} Rd8 {[%emt 0:00:30]} 16. Qb1 {[%emt 0:00:08]} Bxf3 {[%emt 0:00:12]} 17. gxf3 {[%emt 0:00:03]} Nd5 {[%emt 0:00:04]} 18. Bg5 {[%emt 0:00:11]} Rd7 {[%emt 0:00:05]} 19. Kh1 {[%emt 0:00:23]} Ne6 {[%emt 0:00:08]} 20. Bh4 {[%emt 0:00:21]} g6 {[%emt 0:00:24]} 21. Bg3 {[%emt 0:00:18]} O-O {[%emt 0:00:12]} 22. Rd1 {[%emt 0:00:06]} Rfd8 {[%emt 0:00:28]} 23. Bh4 {[%emt 0:00:03]} Ne7 {[%emt 0:00:30]} 24. Rxd7 {[%emt 0:00:38]} Rxd7 {[%emt 0:00:01]} 25. Qe1 {[%emt 0:00:01]} Qd5 {[%emt 0:00:08]} 26. Qe3 {[%emt 0:00:07]} Qd2 {[%emt 0:00:16]} 27. Qxd2 {[%emt 0:01:43]} Rxd2 {[%emt 0:00:05]} 28. Be4 {[%emt 0:00:12]} Nf5 {[%emt 0:00:18]} 29. Bxf5 {[%emt 0:00:19]} gxf5 {[%emt 0:00:02]} 30. Rc1 {[%emt 0:00:01]} c2 {[%emt 0:00:03]} 31. Kg2 {[%emt 0:00:03]} Nd4 {[%emt 0:00:01]} 32. Bg5 {[%emt 0:00:14]} Rd1 {[%emt 0:00:03]} 0-1

[Event "CCT Chessable Masters Play-In 2025"]
[Site "Online"]
[Date "2025.02.17"]
[Round "3.74"]
[White "Pakleza, Zbigniew"]
[Black "Lie, Kjetil A."]
[Result "1-0"]
[ECO "A47"]
[WhiteElo "2485"]
[BlackElo "2489"]
[PlyCount "139"]
[EventDate "2025.02.13"]
[EventType "swiss"]
[EventCountry "NET"]
[TimeControl "600"]

1. d4 {[%emt 0:00:05]} Nf6 {[%emt 0:00:21]} 2. Nf3 {[%emt 0:00:01]} c5 {[%emt 0:00:03]} 3. c3 {[%emt 0:00:01]} b6 {[%emt 0:00:06]} 4. Bf4 {[%emt 0:00:02]} Bb7 {[%emt 0:00:03]} 5. e3 {[%emt 0:00:00]} g6 {[%emt 0:00:09]} 6. Bc4 {[%emt 0:00:02]} cxd4 {[%emt 0:00:26]} 7. cxd4 {[%emt 0:00:04]} Bg7 {[%emt 0:00:09]} 8. Nc3 {[%emt 0:00:01]} O-O {[%emt 0:00:02]} 9. O-O {[%emt 0:00:04]} d6 {[%emt 0:00:24]} 10. h3 {[%emt 0:00:02]} Nbd7 {[%emt 0:00:01]} 11. Qe2 {[%emt 0:00:02]} a6 {[%emt 0:00:03]} 12. a4 {[%emt 0:00:07]} Qb8 {[%emt 0:01:09]} 13. Rfc1 {[%emt 0:00:04]} Qa7 {[%emt 0:00:05]} 14. e4 {[%emt 0:00:14]} Rac8 {[%emt 0:00:11]} 15. Bd3 {[%emt 0:00:50]} e5 {[%emt 0:00:02]} 16. Be3 {[%emt 0:00:16]} exd4 {[%emt 0:00:08]} 17. Bxd4 {[%emt 0:00:00]} Nc5 {[%emt 0:00:03]} 18. Bxc5 {[%emt 0:00:32]} bxc5 {[%emt 0:00:07]} 19. Nd2 {[%emt 0:00:57]} Rfe8 {[%emt 0:00:03]} 20. Qf1 {[%emt 0:00:05]} Nh5 {[%emt 0:00:59]} 21. Nc4 {[%emt 0:00:21]} Rcd8 {[%emt 0:00:07]} 22. Na5 {[%emt 0:00:10]} Ba8 {[%emt 0:00:24]} 23. Bc4 {[%emt 0:00:21]} Nf4 {[%emt 0:00:26]} 24. g3 {[%emt 0:00:28]} Ne6 {[%emt 0:00:02]} 25. Bd5 {[%emt 0:00:06]} Nd4 {[%emt 0:00:12]} 26. Rd1 {[%emt 0:00:33]} Bxd5 {[%emt 0:00:10]} 27. exd5 {[%emt 0:00:18]} Qb6 {[%emt 0:00:11]} 28. Nc4 {[%emt 0:00:11]} Qb4 {[%emt 0:00:06]} 29. Rac1 {[%emt 0:00:43]} h5 {[%emt 0:00:05]} 30. Qd3 {[%emt 0:00:21]} h4 {[%emt 0:00:06]} 31. gxh4 {[%emt 0:00:04]} Bh6 {[%emt 0:00:49]} 32. Rb1 {[%emt 0:00:06]} Re7 {[%emt 0:00:21]} 33. Kh1 {[%emt 0:00:06]} Kh8 {[%emt 0:00:03]} 34. Rg1 {[%emt 0:00:13]} Qb7 {[%emt 0:00:23]} 35. h5 {[%emt 0:00:08]} g5 {[%emt 0:00:06]} 36. Rge1 {[%emt 0:00:09]} f5 {[%emt 0:00:02]} 37. Re3 {[%emt 0:00:32]} g4 {[%emt 0:00:12]} 38. Ree1 {[%emt 0:00:01]} Rde8 {[%emt 0:00:01]} 39. Ne3 {[%emt 0:00:17]} Re5 {[%emt 0:00:09]} 40. hxg4 {[%emt 0:00:08]} Qe7 {[%emt 0:00:02]} 41. Ng2 {[%emt 0:00:07]} fxg4 {[%emt 0:00:08]} 42. Qg6 {[%emt 0:00:05]} Bd2 {[%emt 0:00:22]} 43. Rxe5 {[%emt 0:00:09]} Qxe5 {[%emt 0:00:00]} 44. Qxg4 {[%emt 0:00:15]} Rg8 {[%emt 0:00:03]} 45. Qh3 {[%emt 0:00:01]} Rg5 {[%emt 0:00:05]} 46. Nh4 {[%emt 0:00:14]} Kh7 {[%emt 0:00:15]} 47. Rg1 {[%emt 0:00:02]} Rxg1+ {[%emt 0:00:05]} 48. Kxg1 {[%emt 0:00:00]} Qg5+ {[%emt 0:00:06]} 49. Kf1 {[%emt 0:00:04]} Bxc3 {[%emt 0:00:05]} 50. bxc3 {[%emt 0:00:00]} Qc1+ {[%emt 0:00:02]} 51. Kg2 {[%emt 0:00:00]} Qg5+ {[%emt 0:00:01]} 52. Kf1 {[%emt 0:00:01]} Nc2 {[%emt 0:00:05]} 53. Qf5+ {[%emt 0:00:05]} Kh6 {[%emt 0:00:02]} 54. Qg6+ {[%emt 0:00:03]} Qxg6 {[%emt 0:00:01]} 55. hxg6 {[%emt 0:00:00]} Na3 {[%emt 0:00:01]} 56. Nf5+ {[%emt 0:00:02]} Kxg6 {[%emt 0:00:02]} 57. Nxd6 {[%emt 0:00:00]} Kf6 {[%emt 0:00:00]} 58. Ne4+ {[%emt 0:00:02]} Ke5 {[%emt 0:00:01]} 59. Nxc5 {[%emt 0:00:00]} Kxd5 {[%emt 0:00:00]} 60. Nxa6 {[%emt 0:00:00]} Kc4 {[%emt 0:00:01]} 61. Ke2 {[%emt 0:00:01]} Kxc3 {[%emt 0:00:00]} 62. Ke3 {[%emt 0:00:01]} Kc4 {[%emt 0:00:01]} 63. Ke4 {[%emt 0:00:00]} Kb3 {[%emt 0:00:00]} 64. Nc5+ {[%emt 0:00:02]} Kb4 {[%emt 0:00:01]} 65. Kd5 {[%emt 0:00:00]} Ka5 {[%emt 0:00:01]} 66. Ne6 {[%emt 0:00:00]} Nc4 {[%emt 0:00:00]} 67. Kxc4 {[%emt 0:00:01]} Kxa4 {[%emt 0:00:01]} 68. Kd5 {[%emt 0:00:00]} Ka3 {[%emt 0:00:00]} 69. Kd6 {[%emt 0:00:00]} Ka2 70. Ke5 {[%emt 0:00:00]} 1-0

[Event "CCT Chessable Masters Play-In 2025"]
[Site "Online"]
[Date "2025.02.17"]
[Round "3.75"]
[White "Demidov, Mikhail"]
[Black "Van Wely, Loek"]
[Result "1-0"]
[ECO "A07"]
[WhiteElo "2549"]
[BlackElo "2449"]
[PlyCount "77"]
[EventDate "2025.02.13"]
[EventType "swiss"]
[EventCountry "NET"]
[TimeControl "600"]
[WhiteClock "0:02:21"]
[BlackClock "0:02:12"]

1. Nf3 {[%emt 0:00:01]} d5 {[%emt 0:00:03]} 2. g3 {[%emt 0:00:00]} Bg4 {[%emt 0:00:02]} 3. Bg2 {[%emt 0:00:03]} Nd7 {[%emt 0:00:02]} 4. h3 {[%emt 0:00:01]} Bh5 {[%emt 0:00:02]} 5. O-O {[%emt 0:00:04]} e6 {[%emt 0:00:01]} 6. d4 {[%emt 0:00:04]} c6 {[%emt 0:00:06]} 7. c4 {[%emt 0:00:01]} Ngf6 {[%emt 0:00:05]} 8. Nc3 {[%emt 0:00:01]} dxc4 {[%emt 0:00:06]} 9. e4 {[%emt 0:00:23]} Be7 {[%emt 0:00:10]} 10. Qe2 {[%emt 0:00:09]} b5 {[%emt 0:00:02]} 11. g4 {[%emt 0:00:01]} Bg6 {[%emt 0:00:02]} 12. Ne5 {[%emt 0:00:00]} Nxe5 {[%emt 0:00:15]} 13. dxe5 {[%emt 0:00:01]} Nd7 {[%emt 0:00:01]} 14. f4 {[%emt 0:00:02]} h5 {[%emt 0:00:01]} 15. g5 {[%emt 0:00:09]} h4 {[%emt 0:00:12]} 16. Bf3 {[%emt 0:00:03]} Nc5 {[%emt 0:00:11]} 17. Be3 {[%emt 0:00:15]} Nd3 {[%emt 0:00:11]} 18. Rad1 {[%emt 0:00:02]} Qc7 {[%emt 0:00:18]} 19. Bg4 {[%emt 0:00:16]} Bh7 {[%emt 0:00:19]} 20. Rxd3 {[%emt 0:00:19]} cxd3 {[%emt 0:00:04]} 21. Qxd3 {[%emt 0:00:00]} Rd8 {[%emt 0:00:03]} 22. Qc2 {[%emt 0:00:01]} b4 {[%emt 0:00:37]} 23. Nb5 {[%emt 0:00:05]} Qb7 {[%emt 0:00:08]} 24. Nd6+ {[%emt 0:00:19]} Bxd6 {[%emt 0:00:10]} 25. exd6 {[%emt 0:00:00]} c5 {[%emt 0:00:30]} 26. g6 {[%emt 0:00:19]} Bxg6 {[%emt 0:00:05]} 27. f5 {[%emt 0:00:01]} exf5 {[%emt 0:00:11]} 28. exf5 {[%emt 0:00:00]} Bh5 {[%emt 0:00:01]} 29. Bg5 {[%emt 0:00:53]} f6 {[%emt 0:00:39]} 30. Bxh5+ {[%emt 0:00:55]} Rxh5 {[%emt 0:00:03]} 31. Qe2+ {[%emt 0:00:02]} Kd7 {[%emt 0:00:11]} 32. Qxh5 {[%emt 0:01:10]} fxg5 {[%emt 0:00:02]} 33. Qxg5 {[%emt 0:00:12]} Kc8 {[%emt 0:00:15]} 34. Rc1 {[%emt 0:01:17]} Rxd6 {[%emt 0:00:54]} 35. Rxc5+ {[%emt 0:00:04]} Kb8 {[%emt 0:00:02]} 36. Qe3 {[%emt 0:00:14]} Qd7 {[%emt 0:01:10]} 37. Qe5 {[%emt 0:00:07]} Kb7 {[%emt 0:00:19]} 38. Qe4+ {[%emt 0:00:03]} Kb6 {[%emt 0:00:15]} 39. Qxb4+ {[%emt 0:00:02]} 1-0

[Event "CCT Chessable Masters Play-In 2025"]
[Site "Online"]
[Date "2025.02.17"]
[Round "3.76"]
[White "Kourkoulos-Arditis, Stamatis"]
[Black "Dvirnyy, Danyyil"]
[Result "1-0"]
[ECO "D02"]
[WhiteElo "2580"]
[BlackElo "2488"]
[PlyCount "65"]
[EventDate "2025.02.13"]
[EventType "swiss"]
[EventCountry "NET"]
[TimeControl "600"]
[WhiteClock "0:02:43"]
[BlackClock "0:04:50"]

1. Nf3 {[%emt 0:00:06]} d5 {[%emt 0:00:03]} 2. g3 {[%emt 0:00:01]} Nf6 {[%emt 0:00:03]} 3. Bg2 {[%emt 0:00:01]} c5 {[%emt 0:00:04]} 4. O-O {[%emt 0:00:07]} Nc6 {[%emt 0:00:03]} 5. d4 {[%emt 0:00:01]} e6 {[%emt 0:00:01]} 6. b3 {[%emt 0:00:04]} cxd4 {[%emt 0:00:03]} 7. Nxd4 {[%emt 0:00:01]} Bc5 {[%emt 0:00:11]} 8. Nxc6 {[%emt 0:00:07]} bxc6 {[%emt 0:00:00]} 9. Bb2 {[%emt 0:00:03]} O-O {[%emt 0:00:01]} 10. c4 {[%emt 0:00:01]} h5 {[%emt 0:00:21]} 11. Qc2 {[%emt 0:00:31]} Bb6 {[%emt 0:00:05]} 12. Nd2 {[%emt 0:00:06]} Qe7 {[%emt 0:00:45]} 13. Nf3 {[%emt 0:00:09]} Bb7 {[%emt 0:00:12]} 14. Rad1 {[%emt 0:00:31]} Rac8 {[%emt 0:00:07]} 15. e3 {[%emt 0:00:05]} Nd7 {[%emt 0:00:31]} 16. h4 {[%emt 0:01:19]} e5 {[%emt 0:00:08]} 17. Bh3 {[%emt 0:00:02]} e4 {[%emt 0:00:12]} 18. Nd4 {[%emt 0:00:01]} g6 {[%emt 0:00:10]} 19. Qc3 {[%emt 0:00:16]} f6 {[%emt 0:00:09]} 20. Ne6 {[%emt 0:00:18]} Rf7 {[%emt 0:00:10]} 21. Nf4 {[%emt 0:00:02]} Kh7 {[%emt 0:00:02]} 22. cxd5 {[%emt 0:00:55]} f5 {[%emt 0:00:09]} 23. d6 {[%emt 0:00:32]} Qe8 {[%emt 0:00:03]} 24. Qc4 {[%emt 0:00:30]} Nc5 {[%emt 0:00:18]} 25. d7 {[%emt 0:00:06]} Rxd7 {[%emt 0:00:03]} 26. Nxh5 {[%emt 0:00:05]} Rf7 {[%emt 0:00:30]} 27. Qc3 {[%emt 0:00:38]} Qe7 {[%emt 0:00:36]} 28. Nf6+ {[%emt 0:00:06]} Kh6 {[%emt 0:00:01]} 29. g4 {[%emt 0:00:28]} fxg4 {[%emt 0:00:00]} 30. Nxg4+ {[%emt 0:00:01]} Kh7 {[%emt 0:00:03]} 31. Nf6+ {[%emt 0:00:01]} Kh6 {[%emt 0:00:01]} 32. Bxc8 {[%emt 0:00:02]} Bxc8 {[%emt 0:00:05]} 33. Ng8+ {[%emt 0:00:01]} 1-0

[Event "CCT Chessable Masters Play-In 2025"]
[Site "Online"]
[Date "2025.02.17"]
[Round "3.77"]
[White "Sychev, Klementy"]
[Black "Harsha Bharathakoti"]
[Result "1/2-1/2"]
[ECO "B33"]
[WhiteElo "2542"]
[BlackElo "2537"]
[PlyCount "103"]
[EventDate "2025.02.13"]
[EventType "swiss"]
[EventCountry "NET"]
[TimeControl "600"]
[WhiteClock "0:04:31"]
[BlackClock "0:02:02"]

1. e4 {[%emt 0:00:01]} c5 {[%emt 0:00:03]} 2. Nf3 {[%emt 0:00:01]} Nc6 {[%emt 0:00:05]} 3. d4 {[%emt 0:00:02]} cxd4 {[%emt 0:00:00]} 4. Nxd4 {[%emt 0:00:01]} Nf6 {[%emt 0:00:02]} 5. Nc3 {[%emt 0:00:00]} e6 {[%emt 0:00:01]} 6. Ndb5 {[%emt 0:00:09]} d6 {[%emt 0:00:04]} 7. Bf4 {[%emt 0:00:02]} e5 {[%emt 0:00:01]} 8. Bg5 {[%emt 0:00:00]} a6 {[%emt 0:00:01]} 9. Na3 {[%emt 0:00:01]} Be6 {[%emt 0:00:01]} 10. Nc4 {[%emt 0:00:01]} Rb8 {[%emt 0:00:01]} 11. g3 {[%emt 0:00:04]} Nd4 {[%emt 0:02:36]} 12. Ne3 {[%emt 0:00:04]} Be7 {[%emt 0:00:03]} 13. Bxf6 {[%emt 0:00:01]} Bxf6 {[%emt 0:00:01]} 14. Ncd5 {[%emt 0:00:01]} Bg5 {[%emt 0:00:01]} 15. c3 {[%emt 0:00:02]} Nc6 {[%emt 0:00:01]} 16. Bg2 {[%emt 0:00:02]} O-O {[%emt 0:00:01]} 17. O-O {[%emt 0:00:02]} Bxe3 {[%emt 0:00:09]} 18. Nxe3 {[%emt 0:00:00]} b5 {[%emt 0:00:08]} 19. Qd2 {[%emt 0:00:02]} Ne7 {[%emt 0:00:10]} 20. a4 {[%emt 0:00:22]} Qb6 {[%emt 0:00:24]} 21. axb5 {[%emt 0:00:04]} axb5 {[%emt 0:00:00]} 22. Rfd1 {[%emt 0:00:08]} Rfd8 {[%emt 0:00:00]} 23. b4 {[%emt 0:00:02]} h6 {[%emt 0:00:22]} 24. Kh1 {[%emt 0:00:02]} Rbc8 {[%emt 0:00:13]} 25. Ra3 {[%emt 0:00:10]} Rc7 {[%emt 0:00:25]} 26. Qe2 {[%emt 0:00:04]} Rcd7 {[%emt 0:00:46]} 27. h4 {[%emt 0:00:11]} Kh8 {[%emt 0:00:16]} 28. Kh2 {[%emt 0:00:01]} Ng8 {[%emt 0:00:01]} 29. Ra5 {[%emt 0:00:22]} Rb8 {[%emt 0:00:02]} 30. Bf1 {[%emt 0:00:05]} Rc7 {[%emt 0:00:05]} 31. Rxb5 {[%emt 0:01:03]} Qxb5 {[%emt 0:00:02]} 32. Qxb5 {[%emt 0:00:01]} Rxb5 {[%emt 0:00:00]} 33. Bxb5 {[%emt 0:00:00]} Rxc3 {[%emt 0:00:00]} 34. Rxd6 {[%emt 0:00:01]} Rb3 {[%emt 0:00:01]} 35. Bc4 {[%emt 0:00:01]} Bxc4 {[%emt 0:00:19]} 36. Nxc4 {[%emt 0:00:02]} Rxb4 {[%emt 0:00:00]} 37. Nxe5 {[%emt 0:00:02]} Rxe4 {[%emt 0:00:00]} 38. Nxf7+ {[%emt 0:00:01]} Kh7 {[%emt 0:00:01]} 39. f3 {[%emt 0:00:07]} Re7 {[%emt 0:00:02]} 40. Nd8 {[%emt 0:00:01]} Nf6 {[%emt 0:00:02]} 41. Ne6 {[%emt 0:00:07]} Rb7 {[%emt 0:00:01]} 42. g4 {[%emt 0:00:03]} Rb3 {[%emt 0:00:03]} 43. Kg2 {[%emt 0:00:01]} Rb4 {[%emt 0:00:04]} 44. Rc6 {[%emt 0:00:03]} h5 {[%emt 0:00:17]} 45. g5 {[%emt 0:00:33]} Nd5 {[%emt 0:00:01]} 46. Kg3 {[%emt 0:00:01]} Ne3 {[%emt 0:00:01]} 47. Rc5 {[%emt 0:00:18]} g6 {[%emt 0:00:58]} 48. Rc7+ {[%emt 0:00:44]} Kh8 {[%emt 0:00:01]} 49. Rc8+ {[%emt 0:00:10]} Kh7 {[%emt 0:00:00]} 50. Rc7+ {[%emt 0:00:01]} Kh8 {[%emt 0:00:01]} 51. Rc8+ {[%emt 0:00:02]} Kh7 {[%emt 0:00:01]} 52. Rc7+ {[%emt 0:00:00]} 1/2-1/2